[Event "*** Titled Tuesday Blitz"]
[Site "Chess.com"]
[Date "2020.05.26"]
[Round "4"]
[White "rugbyclub"]
[Black "tylityli"]
[Result "0-1"]
[WhiteElo "2093"]
[BlackElo "2300"]
[TimeControl "180+1"]
[EndTime "10:39:21 PDT"]
[Termination "tylityli won on time"]

1. e4 {[%clk 0:02:59.6]} 1... e5 {[%clk 0:02:57.7]} 2. Nf3 {[%clk 0:02:59.6]}
2... Nc6 {[%clk 0:02:57.1]} 3. Bc4 {[%clk 0:02:59.5]} 3... Nf6 {[%clk
0:02:51.1]} 4. d3 {[%clk 0:02:59.3]} 4... Be7 {[%clk 0:02:50.2]} 5. O-O {[%clk
0:02:58.2]} 5... O-O {[%clk 0:02:50.2]} 6. Re1 {[%clk 0:02:57.3]} 6... d6 {[%clk
0:02:50.1]} 7. a4 {[%clk 0:02:57]} 7... Be6 {[%clk 0:02:47.5]} 8. Nbd2 {[%clk
0:02:49.1]} 8... Qd7 {[%clk 0:02:43.8]} 9. a5 {[%clk 0:02:42.9]} 9... a6 {[%clk
0:02:43.2]} 10. c3 {[%clk 0:02:37.6]} 10... Rfd8 {[%clk 0:02:35.1]} 11. Nf1
{[%clk 0:02:32.8]} 11... Bxc4 {[%clk 0:02:33.1]} 12. dxc4 {[%clk 0:02:31.8]}
12... Qe6 {[%clk 0:02:33.4]} 13. Qe2 {[%clk 0:02:25.9]} 13... h6 {[%clk
0:02:32.6]} 14. Ng3 {[%clk 0:02:25.5]} 14... Bf8 {[%clk 0:02:26.5]} 15. h3
{[%clk 0:02:20.2]} 15... g6 {[%clk 0:02:25.3]} 16. b4 {[%clk 0:02:14]} 16... Bg7
{[%clk 0:02:24.6]} 17. Be3 {[%clk 0:02:09.7]} 17... Nb8 {[%clk 0:02:14.7]} 18.
Nh2 {[%clk 0:01:58]} 18... Nbd7 {[%clk 0:02:13.7]} 19. Ng4 {[%clk 0:01:57.8]}
19... Kh7 {[%clk 0:02:02.4]} 20. f3 {[%clk 0:01:55]} 20... Ng8 {[%clk
0:01:52.9]} 21. Nf2 {[%clk 0:01:50.4]} 21... f5 {[%clk 0:01:51.6]} 22. exf5
{[%clk 0:01:49.5]} 22... gxf5 {[%clk 0:01:51.4]} 23. Qd3 {[%clk 0:01:47.4]}
23... Ne7 {[%clk 0:01:45.2]} 24. f4 {[%clk 0:01:34.4]} 24... e4 {[%clk
0:01:42.7]} 25. Qd2 {[%clk 0:01:33.8]} 25... Qxc4 {[%clk 0:01:40.5]} 26. Rac1
{[%clk 0:01:29.1]} 26... Nf6 {[%clk 0:01:32]} 27. Bd4 {[%clk 0:01:25.2]} 27...
c5 {[%clk 0:01:28.1]} 28. Be3 {[%clk 0:01:21.4]} 28... Rac8 {[%clk 0:01:26.2]}
29. Red1 {[%clk 0:01:17.9]} 29... Qe6 {[%clk 0:01:19]} 30. bxc5 {[%clk
0:01:09.6]} 30... dxc5 {[%clk 0:01:12.3]} 31. Qxd8 {[%clk 0:01:04.9]} 31... Rxd8
{[%clk 0:01:11.8]} 32. Rxd8 {[%clk 0:01:05.4]} 32... Ned5 {[%clk 0:01:09.3]} 33.
Bxc5 {[%clk 0:01:03.9]} 33... Nxf4 {[%clk 0:01:05.6]} 34. Rb1 {[%clk 0:00:58]}
34... Qe5 {[%clk 0:01:02.6]} 35. Bd4 {[%clk 0:00:55.2]} 35... Qc7 {[%clk
0:01:01.8]} 36. Ra8 {[%clk 0:00:51.5]} 36... Nd3 {[%clk 0:00:55.1]} 37. Nxd3
{[%clk 0:00:42.5]} 37... exd3 {[%clk 0:00:54.5]} 38. Nxf5 {[%clk 0:00:42.2]}
38... d2 {[%clk 0:00:51.2]} 39. Nxg7 {[%clk 0:00:27.5]} 39... Kxg7 {[%clk
0:00:47.4]} 40. Rf1 {[%clk 0:00:26.8]} 40... Qd7 {[%clk 0:00:38.5]} 41. Bxf6+
{[%clk 0:00:24.9]} 41... Kg6 {[%clk 0:00:37.9]} 42. Bd4 {[%clk 0:00:25]} 42...
Qb5 {[%clk 0:00:34.4]} 43. Rg8+ {[%clk 0:00:20.7]} 43... Kh5 {[%clk 0:00:28.1]}
44. g4+ {[%clk 0:00:14]} 44... Kh4 {[%clk 0:00:27.9]} 45. Bf6+ {[%clk
0:00:12.9]} 45... Kg3 {[%clk 0:00:23.3]} 46. Bh4+ {[%clk 0:00:03.9]} 46... Kxh4
{[%clk 0:00:21.6]} 47. Rgf8 {[%clk 0:00:04.6]} 47... Qe2 {[%clk 0:00:20]} 48. g5
{[%clk 0:00:02.2]} 48... hxg5 {[%clk 0:00:18.3]} 49. Rh8+ {[%clk 0:00:01.1]}
49... Kg3 {[%clk 0:00:16.7]} 0-1

[Event "*** Titled Tuesday Blitz"]
[Site "Chess.com"]
[Date "2020.05.26"]
[Round "4"]
[White "maciek_92"]
[Black "AlexOstrovskiy"]
[Result "0-1"]
[WhiteElo "2808"]
[BlackElo "2631"]
[TimeControl "180+1"]
[EndTime "10:39:22 PDT"]
[Termination "AlexOstrovskiy won by resignation"]

1. e4 {[%clk 0:03:00.9]} 1... c6 {[%clk 0:02:59.3]} 2. d4 {[%clk 0:03:00.7]}
2... d5 {[%clk 0:03:00.2]} 3. e5 {[%clk 0:03:01.3]} 3... c5 {[%clk 0:03:00.4]}
4. dxc5 {[%clk 0:03:01]} 4... e6 {[%clk 0:02:59.9]} 5. a3 {[%clk 0:03:00.8]}
5... Nc6 {[%clk 0:02:58.1]} 6. Nf3 {[%clk 0:02:52.6]} 6... Bxc5 {[%clk
0:02:57.9]} 7. b4 {[%clk 0:02:52.7]} 7... Bb6 {[%clk 0:02:58.1]} 8. Bb2 {[%clk
0:02:49.7]} 8... Nge7 {[%clk 0:02:56.9]} 9. Bd3 {[%clk 0:02:49.1]} 9... Ng6
{[%clk 0:02:55.9]} 10. O-O {[%clk 0:02:41.6]} 10... O-O {[%clk 0:02:55.4]} 11.
Re1 {[%clk 0:02:34.1]} 11... Nf4 {[%clk 0:02:50.5]} 12. Bf1 {[%clk 0:02:32.5]}
12... f6 {[%clk 0:02:50.8]} 13. exf6 {[%clk 0:02:30]} 13... gxf6 {[%clk
0:02:51.7]} 14. g3 {[%clk 0:02:22.7]} 14... Ng6 {[%clk 0:02:49.2]} 15. c4 {[%clk
0:02:23.1]} 15... dxc4 {[%clk 0:02:31.4]} 16. Bxc4 {[%clk 0:02:24]} 16... Nge5
{[%clk 0:02:07.6]} 17. Nxe5 {[%clk 0:02:10]} 17... Nxe5 {[%clk 0:02:01.9]} 18.
Be2 {[%clk 0:02:00.2]} 18... Bd7 {[%clk 0:01:58.1]} 19. Nc3 {[%clk 0:01:55.4]}
19... Rc8 {[%clk 0:01:57.1]} 20. Qb3 {[%clk 0:01:35.1]} 20... Qe7 {[%clk
0:01:41.2]} 21. Ne4 {[%clk 0:01:19.5]} 21... Bc6 {[%clk 0:01:34.9]} 22. Nc5
{[%clk 0:00:57.4]} 22... Bxc5 {[%clk 0:01:30.2]} 23. bxc5 {[%clk 0:00:58.3]}
23... Bd5 {[%clk 0:01:30.6]} 24. Qe3 {[%clk 0:00:53.6]} 24... Rxc5 {[%clk
0:01:20.8]} 25. Bxe5 {[%clk 0:00:44.4]} 25... fxe5 {[%clk 0:01:20.2]} 26. Qxe5
{[%clk 0:00:45.3]} 26... Rc2 {[%clk 0:01:07.6]} 27. Rac1 {[%clk 0:00:40.3]}
27... Qc5 {[%clk 0:00:59.2]} 28. Qg5+ {[%clk 0:00:34.6]} 28... Kh8 {[%clk
0:00:56.5]} 29. Qe3 {[%clk 0:00:21.5]} 29... Qxe3 {[%clk 0:00:52]} 30. fxe3
{[%clk 0:00:22.4]} 30... Rfc8 {[%clk 0:00:52.3]} 31. Rxc2 {[%clk 0:00:21.3]}
31... Rxc2 {[%clk 0:00:52.2]} 32. g4 {[%clk 0:00:08.4]} 32... Rc3 {[%clk
0:00:49.1]} 33. Kf2 {[%clk 0:00:08.1]} 33... Rxa3 {[%clk 0:00:49.1]} 34. Rc1
{[%clk 0:00:07.9]} 34... Ra2 {[%clk 0:00:45.2]} 35. Rc7 {[%clk 0:00:06.1]} 35...
b5 {[%clk 0:00:41.9]} 36. Ke1 {[%clk 0:00:05.3]} 36... b4 {[%clk 0:00:35.1]} 37.
Bd3 {[%clk 0:00:05]} 37... Rxh2 {[%clk 0:00:33.6]} 38. Rxa7 {[%clk 0:00:05]}
38... b3 {[%clk 0:00:30.9]} 39. e4 {[%clk 0:00:05.5]} 39... Rh3 {[%clk
0:00:13.2]} 40. Kd2 {[%clk 0:00:05.2]} 40... b2 {[%clk 0:00:07.8]} 41. Bb1
{[%clk 0:00:04.2]} 41... Rh2+ {[%clk 0:00:05.5]} 42. Kc3 {[%clk 0:00:03.7]}
42... Bc6 {[%clk 0:00:03.8]} 43. Rc7 {[%clk 0:00:04.3]} 43... Bb5 {[%clk
0:00:03.5]} 44. Rc5 {[%clk 0:00:03.8]} 44... Be2 {[%clk 0:00:02.4]} 45. e5
{[%clk 0:00:03.9]} 45... Bxg4 {[%clk 0:00:02.3]} 46. Rb5 {[%clk 0:00:03.3]}
46... Bf5 {[%clk 0:00:02.5]} 47. Bxf5 {[%clk 0:00:03.5]} 47... exf5 {[%clk
0:00:03.4]} 48. e6 {[%clk 0:00:04.4]} 48... Re2 {[%clk 0:00:03.5]} 49. Kd3
{[%clk 0:00:03.8]} 49... Rxe6 {[%clk 0:00:03.4]} 50. Rxb2 {[%clk 0:00:04.7]}
50... Rf6 {[%clk 0:00:03.8]} 51. Rg2 {[%clk 0:00:05.6]} 51... Rg6 {[%clk
0:00:03.6]} 52. Ke3 {[%clk 0:00:06.5]} 52... Rxg2 {[%clk 0:00:03.6]} 0-1

[Event "*** Titled Tuesday Blitz"]
[Site "Chess.com"]
[Date "2020.05.26"]
[Round "4"]
[White "Ziachess74"]
[Black "oneshot007"]
[Result "1-0"]
[WhiteElo "2614"]
[BlackElo "2443"]
[TimeControl "180+1"]
[EndTime "10:39:22 PDT"]
[Termination "Ziachess74 won by resignation"]

1. d4 {[%clk 0:03:00.9]} 1... g6 {[%clk 0:02:55.3]} 2. Nf3 {[%clk 0:02:56]} 2...
Nf6 {[%clk 0:02:50.7]} 3. g3 {[%clk 0:02:53]} 3... Bg7 {[%clk 0:02:49.1]} 4. Bg2
{[%clk 0:02:53.9]} 4... O-O {[%clk 0:02:45.6]} 5. O-O {[%clk 0:02:54.8]} 5... d6
{[%clk 0:02:40.6]} 6. b3 {[%clk 0:02:53.5]} 6... a5 {[%clk 0:02:38.2]} 7. Bb2
{[%clk 0:02:49.6]} 7... a4 {[%clk 0:02:37.1]} 8. c4 {[%clk 0:02:49]} 8... Ne4
{[%clk 0:02:30]} 9. Nfd2 {[%clk 0:02:36.5]} 9... Nxd2 {[%clk 0:02:28.5]} 10.
Nxd2 {[%clk 0:02:34.9]} 10... a3 {[%clk 0:02:26.2]} 11. Bc3 {[%clk 0:02:34.3]}
11... c5 {[%clk 0:02:26.2]} 12. Nf3 {[%clk 0:02:29.2]} 12... Nc6 {[%clk
0:02:25.4]} 13. Rc1 {[%clk 0:02:26.8]} 13... Bg4 {[%clk 0:02:06.2]} 14. e3
{[%clk 0:02:22]} 14... cxd4 {[%clk 0:01:51.9]} 15. exd4 {[%clk 0:02:19.5]} 15...
Qd7 {[%clk 0:01:47]} 16. d5 {[%clk 0:02:11.1]} 16... Bxf3 {[%clk 0:01:28.4]} 17.
Bxf3 {[%clk 0:01:59.7]} 17... Ne5 {[%clk 0:01:27.4]} 18. Bg2 {[%clk 0:01:57.3]}
18... b5 {[%clk 0:01:23.1]} 19. f4 {[%clk 0:01:55.7]} 19... Ng4 {[%clk 0:01:19]}
20. Bxg7 {[%clk 0:01:55]} 20... Kxg7 {[%clk 0:01:15.5]} 21. Qd4+ {[%clk
0:01:54.2]} 21... Nf6 {[%clk 0:01:11.2]} 22. c5 {[%clk 0:01:48.9]} 22... dxc5
{[%clk 0:01:11.3]} 23. Rxc5 {[%clk 0:01:48.2]} 23... Rac8 {[%clk 0:01:10.5]} 24.
b4 {[%clk 0:01:46.8]} 24... Rfd8 {[%clk 0:01:01]} 25. Rd1 {[%clk 0:01:39.6]}
25... Kg8 {[%clk 0:00:57.4]} 26. h3 {[%clk 0:01:38.3]} 26... Ne8 {[%clk
0:00:53.1]} 27. Re1 {[%clk 0:01:29.5]} 27... Nd6 {[%clk 0:00:50.9]} 28. g4
{[%clk 0:01:28.8]} 28... Nc4 {[%clk 0:00:47.8]} 29. Kh2 {[%clk 0:01:22.6]} 29...
e6 {[%clk 0:00:38]} 30. Rd1 {[%clk 0:01:12.9]} 30... Rxc5 {[%clk 0:00:30]} 31.
bxc5 {[%clk 0:01:12]} 31... exd5 {[%clk 0:00:29.4]} 32. Qxd5 {[%clk 0:01:08.6]}
32... Qxd5 {[%clk 0:00:27.9]} 33. Rxd5 {[%clk 0:01:09.5]} 33... Rc8 {[%clk
0:00:17.6]} 34. c6 {[%clk 0:01:02.8]} 34... Ne3 {[%clk 0:00:16.2]} 35. Rc5
{[%clk 0:00:56.9]} 35... Nxg2 {[%clk 0:00:15.7]} 36. Kxg2 {[%clk 0:00:57.8]}
36... b4 {[%clk 0:00:14.9]} 37. Kf3 {[%clk 0:00:52.8]} 37... Kf8 {[%clk
0:00:15.2]} 38. Ke4 {[%clk 0:00:52.6]} 38... Ke7 {[%clk 0:00:15.4]} 39. Kd5
{[%clk 0:00:52.1]} 39... b3 {[%clk 0:00:11.7]} 40. axb3 {[%clk 0:00:51.3]} 40...
Ra8 {[%clk 0:00:08.6]} 41. Rc1 {[%clk 0:00:47.2]} 41... a2 {[%clk 0:00:07.6]}
42. Re1+ {[%clk 0:00:46.4]} 42... Kd8 {[%clk 0:00:06.6]} 43. Ra1 {[%clk
0:00:46.2]} 43... Kc7 {[%clk 0:00:04.8]} 44. b4 {[%clk 0:00:45.8]} 44... Ra3
{[%clk 0:00:03.4]} 45. Kc5 {[%clk 0:00:45]} 45... Rc3+ {[%clk 0:00:02.8]} 46.
Kd5 {[%clk 0:00:44.4]} 46... Rc2 {[%clk 0:00:02.8]} 47. b5 {[%clk 0:00:43.5]}
47... Rb2 {[%clk 0:00:01.8]} 48. Kc5 {[%clk 0:00:43.2]} 48... Rc2+ {[%clk
0:00:01.4]} 49. Kb4 {[%clk 0:00:43.5]} 49... Kb6 {[%clk 0:00:01.9]} 50. Kb3
{[%clk 0:00:42.8]} 50... Rh2 {[%clk 0:00:02.5]} 51. Rxa2 {[%clk 0:00:41.5]}
51... Rxh3+ {[%clk 0:00:03.2]} 52. Kc4 {[%clk 0:00:41.6]} 52... Re3 {[%clk
0:00:02.1]} 53. Ra6+ {[%clk 0:00:41.3]} 53... Kc7 {[%clk 0:00:02.5]} 54. Kc5
{[%clk 0:00:40.8]} 54... Rc3+ {[%clk 0:00:02.5]} 55. Kd4 {[%clk 0:00:40.6]}
55... Rf3 {[%clk 0:00:03.2]} 56. Ra7+ {[%clk 0:00:39.3]} 56... Kb6 {[%clk
0:00:03.2]} 57. Rb7+ {[%clk 0:00:39.4]} 57... Ka5 {[%clk 0:00:03.6]} 58. c7
{[%clk 0:00:39.3]} 58... Rxf4+ {[%clk 0:00:03.5]} 59. Kd5 {[%clk 0:00:39.5]} 1-0

[Event "*** Titled Tuesday Blitz"]
[Site "Chess.com"]
[Date "2020.05.26"]
[Round "4"]
[White "Perecke"]
[Black "WonderChampion"]
[Result "1-0"]
[WhiteElo "2197"]
[BlackElo "1920"]
[TimeControl "180+1"]
[EndTime "10:39:22 PDT"]
[Termination "Perecke won by checkmate"]

1. e4 {[%clk 0:03:00.9]} 1... c5 {[%clk 0:02:58.7]} 2. Nf3 {[%clk 0:02:58]} 2...
g6 {[%clk 0:02:58.9]} 3. d4 {[%clk 0:02:57.6]} 3... cxd4 {[%clk 0:02:57.3]} 4.
Nxd4 {[%clk 0:02:45.1]} 4... Nc6 {[%clk 0:02:55.7]} 5. Nc3 {[%clk 0:02:43.7]}
5... Bg7 {[%clk 0:02:55.3]} 6. Be3 {[%clk 0:02:43.9]} 6... Nf6 {[%clk
0:02:55.6]} 7. Be2 {[%clk 0:02:44.1]} 7... O-O {[%clk 0:02:55.4]} 8. O-O {[%clk
0:02:43.7]} 8... d5 {[%clk 0:02:55.7]} 9. Nxc6 {[%clk 0:02:34.3]} 9... bxc6
{[%clk 0:02:54.9]} 10. e5 {[%clk 0:02:33.6]} 10... Ne8 {[%clk 0:02:52.1]} 11. f4
{[%clk 0:02:32]} 11... Nc7 {[%clk 0:02:35.1]} 12. Bf3 {[%clk 0:02:28.7]} 12...
Be6 {[%clk 0:02:27.7]} 13. Qe2 {[%clk 0:02:23.4]} 13... a5 {[%clk 0:02:19.5]}
14. Rfd1 {[%clk 0:02:21.6]} 14... Qc8 {[%clk 0:02:17.6]} 15. Na4 {[%clk
0:02:12.3]} 15... Qa6 {[%clk 0:02:02.9]} 16. Qf2 {[%clk 0:02:07.1]} 16... Qb5
{[%clk 0:01:58.8]} 17. b3 {[%clk 0:02:03.8]} 17... f6 {[%clk 0:01:55.4]} 18.
exf6 {[%clk 0:01:10.3]} 18... Bxf6 {[%clk 0:01:53.1]} 19. Bd4 {[%clk 0:01:03.6]}
19... Bg7 {[%clk 0:01:42.8]} 20. Bxg7 {[%clk 0:01:02.8]} 20... Kxg7 {[%clk
0:01:42.9]} 21. Qd4+ {[%clk 0:01:02.3]} 21... Kg8 {[%clk 0:01:39.5]} 22. Re1
{[%clk 0:00:59.5]} 22... Rf7 {[%clk 0:01:30.1]} 23. Nc5 {[%clk 0:00:55.7]} 23...
Bf5 {[%clk 0:01:28.4]} 24. c4 {[%clk 0:00:51]} 24... dxc4 {[%clk 0:01:16.8]} 25.
bxc4 {[%clk 0:00:51.9]} 25... Qb6 {[%clk 0:01:16]} 26. g4 {[%clk 0:00:49.6]}
26... Bc8 {[%clk 0:01:02.2]} 27. Rab1 {[%clk 0:00:46.9]} 27... Qa7 {[%clk
0:00:59]} 28. Bxc6 {[%clk 0:00:41.5]} 28... Rb8 {[%clk 0:00:58.8]} 29. Rxb8
{[%clk 0:00:32.2]} 29... Qxb8 {[%clk 0:00:58.6]} 30. Qd8+ {[%clk 0:00:30.3]}
30... Kg7 {[%clk 0:00:55.3]} 31. Bb7 {[%clk 0:00:17.9]} 31... Qa7 {[%clk
0:00:51.3]} 32. Qxc7 {[%clk 0:00:12.5]} 32... Bxb7 {[%clk 0:00:51.4]} 33. Qe5+
{[%clk 0:00:08.9]} 33... Kg8 {[%clk 0:00:49.7]} 34. Qe3 {[%clk 0:00:08.8]} 34...
Bc6 {[%clk 0:00:47.9]} 35. Rd1 {[%clk 0:00:08.9]} 35... Qc7 {[%clk 0:00:45.7]}
36. Ne6 {[%clk 0:00:05]} 36... Qc8 {[%clk 0:00:22.8]} 37. Rd8+ {[%clk
0:00:04.7]} 37... Qxd8 {[%clk 0:00:19]} 38. Nxd8 {[%clk 0:00:05.6]} 38... Bd7
{[%clk 0:00:18.9]} 39. Ne6 {[%clk 0:00:05.1]} 39... Bxe6 {[%clk 0:00:18.5]} 40.
Qxe6 {[%clk 0:00:06]} 40... Kg7 {[%clk 0:00:19.2]} 41. f5 {[%clk 0:00:06.2]}
41... gxf5 {[%clk 0:00:19.2]} 42. gxf5 {[%clk 0:00:07.1]} 42... h6 {[%clk
0:00:20.1]} 43. Kg2 {[%clk 0:00:06.8]} 43... Kg8 {[%clk 0:00:19.6]} 44. Kg3
{[%clk 0:00:06.7]} 44... Kf8 {[%clk 0:00:20.5]} 45. Kf4 {[%clk 0:00:06.8]} 45...
Rf6 {[%clk 0:00:21.4]} 46. Qc8+ {[%clk 0:00:06.4]} 46... Kf7 {[%clk 0:00:22.1]}
47. c5 {[%clk 0:00:06.7]} 47... Kg7 {[%clk 0:00:19.3]} 48. Ke5 {[%clk
0:00:06.8]} 48... Kf7 {[%clk 0:00:18.8]} 49. c6 {[%clk 0:00:06]} 49... h5 {[%clk
0:00:18.8]} 50. c7 {[%clk 0:00:05.4]} 50... Rc6 {[%clk 0:00:19.2]} 51. Qe6+
{[%clk 0:00:05.6]} 51... Rxe6+ {[%clk 0:00:18.5]} 52. fxe6+ {[%clk 0:00:06.5]}
52... Kg6 {[%clk 0:00:19.2]} 53. c8=Q {[%clk 0:00:06.1]} 53... Kg5 {[%clk
0:00:20.1]} 54. Qg8+ {[%clk 0:00:06.1]} 54... Kh4 {[%clk 0:00:19.9]} 55. Qg3#
{[%clk 0:00:05.6]} 1-0

[Event "*** Titled Tuesday Blitz"]
[Site "Chess.com"]
[Date "2020.05.26"]
[Round "4"]
[White "sergiochess83"]
[Black "vanea_03"]
[Result "1-0"]
[WhiteElo "2857"]
[BlackElo "2682"]
[TimeControl "180+1"]
[EndTime "10:39:23 PDT"]
[Termination "sergiochess83 won by resignation"]

1. e4 {[%clk 0:03:00.9]} 1... e5 {[%clk 0:03:00]} 2. Nf3 {[%clk 0:03:00.6]} 2...
Nc6 {[%clk 0:03:00.3]} 3. Bb5 {[%clk 0:03:00.3]} 3... a6 {[%clk 0:03:00.4]} 4.
Ba4 {[%clk 0:03:00.4]} 4... Nf6 {[%clk 0:03:00.4]} 5. O-O {[%clk 0:03:00.4]}
5... Bc5 {[%clk 0:03:00.8]} 6. c3 {[%clk 0:02:59.6]} 6... b5 {[%clk 0:03:01.1]}
7. Bb3 {[%clk 0:03:00]} 7... d6 {[%clk 0:03:01.2]} 8. d4 {[%clk 0:03:00.2]} 8...
Bb6 {[%clk 0:03:01.7]} 9. a4 {[%clk 0:03:00.8]} 9... Rb8 {[%clk 0:03:01.9]} 10.
a5 {[%clk 0:02:59.9]} 10... Ba7 {[%clk 0:03:02]} 11. h3 {[%clk 0:03:00.1]} 11...
O-O {[%clk 0:03:02.1]} 12. Be3 {[%clk 0:02:59.2]} 12... exd4 {[%clk 0:03:02.6]}
13. cxd4 {[%clk 0:02:58.9]} 13... Nb4 {[%clk 0:03:02.7]} 14. Nc3 {[%clk
0:02:25.9]} 14... Bb7 {[%clk 0:03:02.1]} 15. Bg5 {[%clk 0:01:45]} 15... h6
{[%clk 0:02:48.8]} 16. Bh4 {[%clk 0:01:45.1]} 16... c5 {[%clk 0:02:15.4]} 17.
Re1 {[%clk 0:01:15.1]} 17... c4 {[%clk 0:01:41.5]} 18. Bc2 {[%clk 0:01:13.8]}
18... g5 {[%clk 0:01:40.8]} 19. Bg3 {[%clk 0:01:12.1]} 19... Nxc2 {[%clk
0:01:28.4]} 20. Qxc2 {[%clk 0:01:11.9]} 20... Nh5 {[%clk 0:01:20.2]} 21. Bh2
{[%clk 0:01:09.9]} 21... Rc8 {[%clk 0:01:16.2]} 22. Nd5 {[%clk 0:00:35]} 22...
Bxd5 {[%clk 0:01:05.2]} 23. exd5 {[%clk 0:00:34.8]} 23... Qd7 {[%clk 0:01:05.8]}
24. Nd2 {[%clk 0:00:18.5]} 24... Bxd4 {[%clk 0:01:04.2]} 25. Ne4 {[%clk
0:00:18.7]} 25... Be5 {[%clk 0:00:19.9]} 26. Bxe5 {[%clk 0:00:18.1]} 26... dxe5
{[%clk 0:00:20.8]} 27. Qe2 {[%clk 0:00:18.7]} 27... g4 {[%clk 0:00:09.6]} 28.
Qxg4+ {[%clk 0:00:07.7]} 28... Qxg4 {[%clk 0:00:09]} 29. hxg4 {[%clk 0:00:08.6]}
29... f5 {[%clk 0:00:09.9]} 30. gxf5 {[%clk 0:00:06.6]} 30... Rcd8 {[%clk
0:00:08]} 31. g4 {[%clk 0:00:06]} 31... Nf4 {[%clk 0:00:07.6]} 32. d6 {[%clk
0:00:06.4]} 32... Nd3 {[%clk 0:00:08]} 33. Re2 {[%clk 0:00:05.4]} 33... h5
{[%clk 0:00:08.6]} 34. f3 {[%clk 0:00:05.8]} 34... Kg7 {[%clk 0:00:08.7]} 35.
Rd2 {[%clk 0:00:05.2]} 35... hxg4 {[%clk 0:00:08.3]} 36. fxg4 {[%clk 0:00:05]}
36... Rh8 {[%clk 0:00:09.1]} 37. Rad1 {[%clk 0:00:03]} 37... Rh4 {[%clk
0:00:09]} 38. Rg2 {[%clk 0:00:03.3]} 38... Nf4 {[%clk 0:00:09.3]} 39. Rg3 {[%clk
0:00:02.3]} 39... Ne2+ {[%clk 0:00:09.6]} 40. Kg2 {[%clk 0:00:03.2]} 40... Nxg3
{[%clk 0:00:10.2]} 41. Kxg3 {[%clk 0:00:04.1]} 41... Rhh8 {[%clk 0:00:07.3]} 42.
Nc5 {[%clk 0:00:04]} 42... Kf7 {[%clk 0:00:06.8]} 43. d7 {[%clk 0:00:04.5]}
43... Rhg8 {[%clk 0:00:05.5]} 44. Ne6 {[%clk 0:00:03.7]} 44... b4 {[%clk
0:00:05.6]} 45. Nxd8+ {[%clk 0:00:03.8]} 45... Rxd8 {[%clk 0:00:06.1]} 46. Kf3
{[%clk 0:00:04.1]} 46... c3 {[%clk 0:00:06.5]} 47. bxc3 {[%clk 0:00:04.5]} 47...
bxc3 {[%clk 0:00:07.4]} 48. Ke4 {[%clk 0:00:05]} 48... c2 {[%clk 0:00:07.9]} 49.
Rc1 {[%clk 0:00:05.4]} 49... Kf6 {[%clk 0:00:07.3]} 50. Rxc2 {[%clk 0:00:05.2]}
50... Rxd7 {[%clk 0:00:08]} 51. Rc6+ {[%clk 0:00:05.1]} 1-0

[Event "*** Titled Tuesday Blitz"]
[Site "Chess.com"]
[Date "2020.05.26"]
[Round "4"]
[White "SaraciNderim"]
[Black "slowdgehammer"]
[Result "0-1"]
[WhiteElo "2750"]
[BlackElo "2354"]
[TimeControl "180+1"]
[EndTime "10:39:23 PDT"]
[Termination "slowdgehammer won on time"]

1. b3 {[%clk 0:02:55]} 1... e5 {[%clk 0:02:47.1]} 2. Bb2 {[%clk 0:02:54.1]} 2...
Nc6 {[%clk 0:02:46.2]} 3. e3 {[%clk 0:02:53.4]} 3... a6 {[%clk 0:02:45.7]} 4. c4
{[%clk 0:02:53.2]} 4... Nf6 {[%clk 0:02:44.1]} 5. Nf3 {[%clk 0:02:52.9]} 5... d6
{[%clk 0:02:41]} 6. d4 {[%clk 0:02:52.2]} 6... Qe7 {[%clk 0:02:41.3]} 7. Nc3
{[%clk 0:02:50.9]} 7... g6 {[%clk 0:02:41.3]} 8. Nd5 {[%clk 0:02:48.5]} 8... Qd8
{[%clk 0:02:39.7]} 9. dxe5 {[%clk 0:02:46.4]} 9... dxe5 {[%clk 0:02:39.5]} 10.
Nxe5 {[%clk 0:02:19]} 10... Nxd5 {[%clk 0:02:38]} 11. Qxd5 {[%clk 0:02:10]}
11... Bb4+ {[%clk 0:02:35.2]} 12. Ke2 {[%clk 0:02:07.1]} 12... O-O {[%clk
0:02:32.4]} 13. a3 {[%clk 0:01:02.9]} 13... Be7 {[%clk 0:02:01.4]} 14. Nxc6
{[%clk 0:01:00.3]} 14... bxc6 {[%clk 0:02:02.3]} 15. Qxd8 {[%clk 0:00:59.4]}
15... Rxd8 {[%clk 0:02:01.8]} 16. b4 {[%clk 0:00:51]} 16... a5 {[%clk 0:02:00]}
17. b5 {[%clk 0:00:50.4]} 17... Be6 {[%clk 0:01:47.3]} 18. Ke1 {[%clk 0:00:34]}
18... Rab8 {[%clk 0:01:46.4]} 19. Rd1 {[%clk 0:00:21]} 19... cxb5 {[%clk
0:01:37.9]} 20. cxb5 {[%clk 0:00:19.5]} 20... Rxd1+ {[%clk 0:01:29]} 21. Kxd1
{[%clk 0:00:20.4]} 21... c6 {[%clk 0:01:28.9]} 22. Be5 {[%clk 0:00:14.6]} 22...
Rd8+ {[%clk 0:01:26.3]} 23. Kc2 {[%clk 0:00:14.2]} 23... cxb5 {[%clk 0:01:25.9]}
24. Bd4 {[%clk 0:00:14.1]} 24... b4 {[%clk 0:01:21.7]} 25. axb4 {[%clk 0:00:12]}
25... axb4 {[%clk 0:01:21]} 26. Bd3 {[%clk 0:00:09.8]} 26... b3+ {[%clk
0:01:15.6]} 27. Kb2 {[%clk 0:00:09.2]} 27... Bf8 {[%clk 0:00:59.6]} 28. Rc1
{[%clk 0:00:07.9]} 28... Bg7 {[%clk 0:00:59.6]} 29. Bxg7 {[%clk 0:00:05.9]}
29... Kxg7 {[%clk 0:01:00.5]} 30. Rc3 {[%clk 0:00:04.2]} 30... Ra8 {[%clk
0:00:59]} 31. Bb1 {[%clk 0:00:01.5]} 31... Rd8 {[%clk 0:00:59.6]} 32. Rd3 {[%clk
0:00:01.3]} 32... Rc8 {[%clk 0:00:55.4]} 33. Rd2 {[%clk 0:00:02]} 33... Kf6
{[%clk 0:00:52.9]} 34. f3 {[%clk 0:00:02.9]} 34... g5 {[%clk 0:00:52]} 35. e4
{[%clk 0:00:03.8]} 35... h5 {[%clk 0:00:52.1]} 36. g3 {[%clk 0:00:04.7]} 36...
h4 {[%clk 0:00:51.8]} 37. f4 {[%clk 0:00:05.3]} 37... hxg3 {[%clk 0:00:52]} 38.
hxg3 {[%clk 0:00:04.9]} 38... gxf4 {[%clk 0:00:52.4]} 39. gxf4 {[%clk
0:00:05.8]} 39... Rh8 {[%clk 0:00:52.4]} 40. e5+ {[%clk 0:00:06.7]} 40... Ke7
{[%clk 0:00:52.3]} 41. f5 {[%clk 0:00:07.5]} 41... Bd7 {[%clk 0:00:52.3]} 42.
f6+ {[%clk 0:00:07]} 42... Ke8 {[%clk 0:00:47.6]} 43. Be4 {[%clk 0:00:06.3]}
43... Rh5 {[%clk 0:00:45]} 44. Rd5 {[%clk 0:00:05.5]} 44... Rh2+ {[%clk
0:00:42.2]} 45. Kc3 {[%clk 0:00:04.9]} 45... b2 {[%clk 0:00:38.1]} 46. Ra5
{[%clk 0:00:04.2]} 46... Kd8 {[%clk 0:00:35.1]} 47. Ra8+ {[%clk 0:00:03.6]}
47... Kc7 {[%clk 0:00:35.8]} 48. Ra7+ {[%clk 0:00:04.2]} 48... Kd8 {[%clk
0:00:36.4]} 49. Rb7 {[%clk 0:00:04.4]} 49... Re2 {[%clk 0:00:34.6]} 50. Rb4
{[%clk 0:00:02]} 50... Rxe4 {[%clk 0:00:32.2]} 0-1